[Event "FIDE World Cup O10-B 2024"]
[Site "Batumi"]
[Date "2024.06.23"]
[Round "1.1"]
[White "Shogdzhiev, Roman"]
[Black "Lazarev, Egor"]
[Result "1-0"]
[ECO "C10"]
[WhiteElo "2060"]
[BlackElo "1683"]
[Annotator "NA RC"]
[PlyCount "67"]
[EventDate "2024.06.23"]
[EventType "swiss"]
[EventCountry "GEO"]
[SourceTitle "playchess.com"]
[Source "ChessBase"]
[SourceQuality "1"]
[TimeControl "5400+30"]

1. e4 {[%emt 0:00:01]} e6 {[%emt 0:00:22]} 2. d4 {[%emt 0:00:08]} d5 {[%emt 0:00:05]} 3. Nc3 {[%emt 0:00:05]} dxe4 {[%emt 0:00:30]} 4. Nxe4 {[%emt 0:01:20]} Nd7 {[%emt 0:00:11]} 5. Nf3 {[%emt 0:00:09]} Ngf6 {[%emt 0:00:04]} 6. Nxf6+ {[%emt 0:00:12]} Nxf6 {[%emt 0:00:05]} 7. c3 {[%emt 0:00:06]} Be7 {[%emt 0:00:40]} 8. Bd3 {[%emt 0:01:37]} O-O {[%emt 0:00:22]} 9. Qe2 {[%emt 0:03:16]} b6 {[%emt 1:32:41]} 10. Bf4 {[%emt 0:00:07]} Bb7 {[%emt 0:00:00]} 11. O-O-O {[%emt 0:00:10]} Nd5 {[%emt 0:00:00]} 12. Qe4 {[%emt 0:06:40]} g6 {[%emt 0:00:00]} 13. Bh6 {[%emt 0:00:17]} Rb8 {[%emt 0:00:00]} 14. Bxf8 {[%emt 0:11:38]} Qxf8 {[%emt 0:00:00]} 15. Qe1 {[%emt 0:06:43]} c5 {[%emt 0:00:00]} 16. Be4 {[%emt 0:12:02]} cxd4 {[%emt 0:00:00]} 17. Nxd4 {[%emt 0:00:21]} Bf6 {[%emt 0:00:00]} 18. Bf3 {[%emt 0:15:48]} Kh8 {[%emt 0:00:00]} 19. Kb1 {[%emt 0:05:33]} b5 {[%emt 0:00:00]} 20. Qe2 {[%emt 0:07:06]} b4 {[%emt 0:00:00]} 21. c4 {[%emt 0:00:32]} Ba6 {[%emt 0:00:00]} 22. Bxd5 {[%emt 0:27:39]} exd5 {[%emt 0:00:00]} 23. Qf3 {[%emt 0:00:00]} Qg7 {[%emt 0:00:00]} 24. Qxd5 {[%emt 0:00:00]} Bb7 {[%emt 0:00:00]} 25. Qd7 {[%emt 0:00:00]} Be4+ {[%emt 0:00:00]} 26. Ka1 {[%emt 0:00:00]} h6 {[%emt 0:00:00]} 27. Rhe1 {[%emt 0:00:00]} Bf5 {[%emt 0:00:00]} 28. Nxf5 {[%emt 0:00:00]} Bxb2+ {[%emt 0:00:00]} 29. Kb1 {[%emt 0:00:00]} gxf5 {[%emt 0:00:00]} 30. Re8+ {[%emt 0:00:00]} Rxe8 {[%emt 0:00:00]} 31. Qxe8+ {[%emt 0:00:00]} Kh7 {[%emt 0:00:00]} 32. Qd7 {[%emt 0:00:00]} Bf6 {[%emt 0:00:00]} 33. Qxf5+ {[%emt 0:00:00]} Kg8 {[%emt 0:00:00]} 34. Re1 {[%emt 0:00:00]} 1-0

[Event "FIDE World Cup O10-B 2024"]
[Site "Batumi"]
[Date "2024.06.23"]
[Round "1.2"]
[White "Popov, Aleksandr And"]
[Black "Xia, Joshua"]
[Result "0-1"]
[ECO "B22"]
[WhiteElo "1661"]
[BlackElo "2060"]
[Annotator "NA RC"]
[PlyCount "142"]
[EventDate "2024.06.23"]
[EventType "swiss"]
[EventCountry "GEO"]
[SourceTitle "playchess.com"]
[Source "ChessBase"]
[SourceQuality "1"]
[TimeControl "5400+30"]

1. e4 {[%emt 0:00:02]} c5 {[%emt 0:00:08]} 2. c3 {[%emt 0:00:04]} Nf6 {[%emt 0:00:06]} 3. e5 {[%emt 0:00:04]} Nd5 {[%emt 0:00:05]} 4. Bc4 {[%emt 0:00:06]} Nb6 {[%emt 0:00:32]} 5. Bb3 {[%emt 0:00:09]} c4 {[%emt 0:00:37]} 6. Bc2 {[%emt 0:00:04]} Nc6 {[%emt 0:00:11]} 7. Nf3 {[%emt 0:00:08]} Qc7 {[%emt 0:05:56]} 8. Qe2 {[%emt 0:01:47]} g6 {[%emt 0:01:10]} 9. O-O {[%emt 0:00:40]} Bg7 {[%emt 0:00:28]} 10. Re1 {[%emt 0:01:15]} O-O {[%emt 0:00:45]} 11. b3 {[%emt 0:00:34]} cxb3 {[%emt 0:08:17]} 12. axb3 {[%emt 0:00:04]} d6 {[%emt 0:00:33]} 13. exd6 {[%emt 0:00:34]} exd6 {[%emt 0:00:24]} 14. d4 {[%emt 0:01:39]} Bg4 {[%emt 0:00:12]} 15. h3 {[%emt 0:04:34]} Bxf3 {[%emt 0:00:12]} 16. Qxf3 {[%emt 0:00:09]} Nxd4 {[%emt 0:00:49]} 17. Qd3 {[%emt 0:05:36]} Nxc2 {[%emt 0:00:18]} 18. Qxc2 {[%emt 0:00:08]} d5 {[%emt 0:02:10]} 19. Qd3 {[%emt 0:03:04]} Rfc8 {[%emt 0:12:41]} 20. Bb2 {[%emt 0:02:16]} Qc6 {[%emt 0:04:02]} 21. Rc1 {[%emt 0:02:38]} a5 {[%emt 0:00:21]} 22. Na3 {[%emt 0:07:43]} a4 {[%emt 0:05:32]} 23. b4 {[%emt 0:01:25]} Nc4 {[%emt 0:01:23]} 24. Nxc4 {[%emt 0:01:09]} dxc4 {[%emt 0:01:02]} 25. Qg3 {[%emt 0:00:26]} Re8 {[%emt 0:01:37]} 26. Re1 {[%emt 0:04:48]} b5 {[%emt 0:00:52]} 27. h4 {[%emt 0:08:00]} h5 {[%emt 0:00:14]} 28. Re3 {[%emt 0:01:48]} Rxe3 {[%emt 0:00:38]} 29. Qxe3 {[%emt 0:00:57]} Re8 {[%emt 0:00:10]} 30. Qd2 {[%emt 0:00:58]} Qe6 {[%emt 0:00:28]} 31. Kf1 {[%emt 0:04:56]} Bf6 {[%emt 0:02:19]} 32. g3 {[%emt 0:05:17]} Qe4 {[%emt 0:00:53]} 33. Kg1 {[%emt 0:02:57]} Qe2 {[%emt 0:00:42]} 34. Rd1 {[%emt 0:01:13]} Qf3 {[%emt 0:01:49]} 35. Re1 {[%emt 0:03:36]} Rd8 {[%emt 0:02:47]} 36. Qe2 {[%emt 0:02:01]} Qxe2 {[%emt 0:02:24]} 37. Rxe2 {[%emt 0:00:02]} Rd3 {[%emt 0:00:42]} 38. Rc2 {[%emt 0:00:16]} a3 {[%emt 0:03:09]} 39. Bxa3 {[%emt 0:00:03]} Bxc3 {[%emt 0:00:07]} 40. Ra2 {[%emt 0:01:12]} Rd1+ {[%emt 0:01:21]} 41. Kg2 {[%emt 0:00:13]} Ra1 {[%emt 0:00:19]} 42. Rxa1 {[%emt 0:00:29]} Bxa1 {[%emt 0:00:04]} 43. Kf3 {[%emt 0:00:11]} c3 {[%emt 0:00:07]} 44. Ke2 {[%emt 0:06:11]} Bb2 {[%emt 0:00:04]} 45. Kd3 {[%emt 0:00:17]} Bxa3 {[%emt 0:00:03]} 46. Kxc3 {[%emt 0:00:12]} Kg7 {[%emt 0:00:03]} 47. Kb3 {[%emt 0:00:13]} Bc1 {[%emt 0:00:05]} 48. Kc2 {[%emt 0:00:05]} Bh6 {[%emt 0:00:07]} 49. Kd3 {[%emt 0:01:24]} Kf6 {[%emt 0:00:32]} 50. Kc3 {[%emt 0:00:32]} Kf5 {[%emt 0:00:11]} 51. Kd3 {[%emt 0:00:12]} Kg4 {[%emt 0:00:58]} 52. Ke2 {[%emt 0:00:24]} Bf8 {[%emt 0:00:06]} 53. Kd3 {[%emt 0:00:09]} Bxb4 {[%emt 0:00:07]} 54. Kd4 {[%emt 0:00:08]} Be1 {[%emt 0:00:08]} 55. Ke5 {[%emt 0:00:05]} Bc3+ {[%emt 0:00:32]} 56. Kd6 {[%emt 0:00:09]} b4 {[%emt 0:00:04]} 57. Ke7 {[%emt 0:00:10]} f6 {[%emt 0:00:17]} 58. Kf7 {[%emt 0:00:14]} Kf5 {[%emt 0:00:07]} 59. f3 {[%emt 0:00:07]} b3 {[%emt 0:00:20]} 60. g4+ {[%emt 0:00:04]} hxg4 {[%emt 0:00:05]} 61. fxg4+ {[%emt 0:00:03]} Kxg4 {[%emt 0:00:05]} 62. Kxg6 {[%emt 0:00:09]} b2 {[%emt 0:00:04]} 63. h5 {[%emt 0:00:27]} b1=Q+ {[%emt 0:00:04]} 64. Kg7 {[%emt 0:00:09]} f5+ {[%emt 0:00:07]} 65. Kh7 {[%emt 0:00:23]} f4+ {[%emt 0:00:03]} 66. Kh6 {[%emt 0:00:10]} Qb6+ {[%emt 0:00:11]} 67. Kh7 {[%emt 0:00:09]} Kxh5 {[%emt 0:00:16]} 68. Kg8 {[%emt 0:00:11]} f3 {[%emt 0:00:17]} 69. Kf7 {[%emt 0:00:07]} f2 {[%emt 0:00:06]} 70. Kg8 {[%emt 0:00:59]} Qe6+ {[%emt 0:00:16]} 71. Kh7 {[%emt 0:00:10]} Qg6# {[%emt 0:00:52]} 0-1

[Event "FIDE World Cup O10-B 2024"]
[Site "Batumi"]
[Date "2024.06.23"]
[Round "1.3"]
[White "Zhauynbay, Alimzhan"]
[Black "AlJamaat, Khaled"]
[Result "1-0"]
[ECO "C78"]
[WhiteElo "1903"]
[BlackElo "1644"]
[Annotator "NA RC"]
[PlyCount "157"]
[EventDate "2024.06.23"]
[EventType "swiss"]
[EventCountry "GEO"]
[SourceTitle "playchess.com"]
[Source "ChessBase"]
[SourceQuality "1"]
[TimeControl "5400+30"]

1. e4 {[%emt 0:00:15]} e5 {[%emt 0:00:18]} 2. Nf3 {[%emt 0:00:19]} Nc6 {[%emt 0:00:12]} 3. Bb5 {[%emt 0:00:17]} a6 {[%emt 0:00:31]} 4. Ba4 {[%emt 0:00:08]} Nf6 {[%emt 0:00:15]} 5. O-O {[%emt 0:00:53]} b5 {[%emt 0:00:36]} 6. Bb3 {[%emt 0:00:08]} Bc5 {[%emt 0:00:41]} 7. Nxe5 {[%emt 0:12:02]} Nxe5 {[%emt 0:00:30]} 8. d4 {[%emt 0:00:06]} Bxd4 {[%emt 0:02:12]} 9. Qxd4 {[%emt 0:03:17]} d6 {[%emt 0:02:02]} 10. f4 {[%emt 0:05:14]} Nc6 {[%emt 0:05:35]} 11. Qe3 {[%emt 0:12:47]} O-O {[%emt 0:01:51]} 12. c3 {[%emt 0:20:45]} Bb7 {[%emt 0:04:49]} 13. Bc2 {[%emt 0:07:49]} Re8 {[%emt 0:04:53]} 14. Nd2 {[%emt 0:02:06]} Qd7 {[%emt 0:05:54]} 15. b3 {[%emt 0:02:34]} Rad8 {[%emt 0:11:19]} 16. Bb2 {[%emt 0:03:50]} h6 {[%emt 0:21:20]} 17. Rad1 {[%emt 0:02:47]} Nb8 {[%emt 0:01:58]} 18. c4 {[%emt 0:01:41]} Qe7 {[%emt 0:03:11]} 19. e5 {[%emt 0:10:36]} Nc6 {[%emt 0:07:00]} 20. Qf3 {[%emt 0:04:07]} dxe5 {[%emt 0:03:15]} 21. fxe5 {[%emt 0:00:15]} Nh7 {[%emt 0:03:42]} 22. Bxh7+ {[%emt 0:05:36]} Kxh7 {[%emt 0:00:11]} 23. Qxf7 {[%emt 0:00:41]} Qxf7 {[%emt 0:01:31]} 24. Rxf7 {[%emt 0:00:02]} Nxe5 {[%emt 0:00:21]} 25. Rxc7 {[%emt 0:00:07]} Be4 {[%emt 0:01:47]} 26. cxb5 {[%emt 0:00:47]} axb5 {[%emt 0:03:51]} 27. Bc3 {[%emt 0:00:31]} Bg6 {[%emt 0:00:50]} 28. Re1 {[%emt 0:00:27]} Nf7 {[%emt 0:00:39]} 29. Ree7 {[%emt 0:01:29]} Rxe7 {[%emt 0:00:38]} 30. Rxe7 {[%emt 0:03:54]} Rd3 {[%emt 0:04:31]} 31. Rc7 {[%emt 0:00:00]} Rd6 {[%emt 0:02:45]} 32. a4 {[%emt 0:00:00]} bxa4 {[%emt 0:00:43]} 33. bxa4 {[%emt 0:00:00]} Ra6 {[%emt 0:00:44]} 34. a5 {[%emt 0:00:00]} Kg8 {[%emt 0:00:23]} 35. Nb3 {[%emt 0:00:00]} Rd6 {[%emt 0:00:37]} 36. Nc5 {[%emt 0:00:00]} Rd1+ {[%emt 0:00:50]} 37. Kf2 {[%emt 0:00:00]} Rc1 {[%emt 0:00:28]} 38. a6 {[%emt 0:00:00]} Rxc3 {[%emt 0:00:32]} 39. a7 {[%emt 0:00:00]} Ra3 {[%emt 0:01:29]} 40. Rc8+ {[%emt 0:00:05]} Kh7 {[%emt 0:00:06]} 41. a8=Q {[%emt 0:00:07]} Rxa8 {[%emt 0:00:12]} 42. Rxa8 {[%emt 0:00:04]} Ne5 {[%emt 0:00:12]} 43. Ne6 {[%emt 0:00:32]} h5 {[%emt 0:01:04]} 44. h4 {[%emt 0:00:31]} Ng4+ {[%emt 0:01:33]} 45. Kg3 {[%emt 0:00:12]} Bf5 {[%emt 0:00:15]} 46. Nf8+ {[%emt 0:01:07]} Kh6 {[%emt 0:00:31]} 47. Kf4 {[%emt 0:00:18]} Bg6 {[%emt 0:00:45]} 48. Nd7 {[%emt 0:03:00]} Bd3 {[%emt 0:02:09]} 49. g3 {[%emt 0:01:34]} g6 {[%emt 0:00:19]} 50. Ra7 {[%emt 0:00:26]} Bc4 {[%emt 0:01:01]} 51. Ne5 {[%emt 0:01:10]} Nxe5 {[%emt 0:00:23]} 52. Kxe5 {[%emt 0:00:01]} Bd3 {[%emt 0:00:12]} 53. Kf6 {[%emt 0:00:06]} Bf5 {[%emt 0:00:19]} 54. Ra8 {[%emt 0:00:57]} Kh7 {[%emt 0:00:10]} 55. Kg5 {[%emt 0:00:41]} Kg7 {[%emt 0:00:56]} 56. Ra7+ {[%emt 0:00:06]} Kh8 {[%emt 0:00:37]} 57. Kh6 {[%emt 0:00:17]} Kg8 {[%emt 0:00:09]} 58. Rg7+ {[%emt 0:00:11]} Kh8 {[%emt 0:00:10]} 59. Rxg6 {[%emt 0:00:26]} Bxg6 {[%emt 0:00:25]} 60. Kxg6 {[%emt 0:00:05]} Kg8 {[%emt 0:00:06]} 61. Kxh5 {[%emt 0:00:05]} Kh7 {[%emt 0:00:20]} 62. g4 {[%emt 0:00:06]} Kg7 {[%emt 0:00:04]} 63. g5 {[%emt 0:00:05]} Kh7 {[%emt 0:00:10]} 64. g6+ {[%emt 0:00:05]} Kh8 {[%emt 0:00:16]} 65. Kh6 {[%emt 0:00:05]} Kg8 {[%emt 0:00:27]} 66. g7 {[%emt 0:00:07]} Kf7 {[%emt 0:00:03]} 67. Kh7 {[%emt 0:00:05]} Kf6 {[%emt 0:00:13]} 68. g8=Q {[%emt 0:00:08]} Ke5 {[%emt 0:00:17]} 69. Qf7 {[%emt 0:00:09]} Kd4 {[%emt 0:00:05]} 70. Qe6 {[%emt 0:00:05]} Kc3 {[%emt 0:00:08]} 71. Qd5 {[%emt 0:00:05]} Kb2 {[%emt 0:00:16]} 72. Qc4 {[%emt 0:00:06]} Ka1 {[%emt 0:00:09]} 73. Qb5 {[%emt 0:00:07]} Ka2 {[%emt 0:00:11]} 74. Kg6 {[%emt 0:00:06]} Ka1 {[%emt 0:00:28]} 75. Kf5 {[%emt 0:00:22]} Ka2 {[%emt 0:00:07]} 76. Ke4 {[%emt 0:00:12]} Ka1 {[%emt 0:00:37]} 77. Kd3 {[%emt 0:00:13]} Ka2 {[%emt 0:00:14]} 78. Kc2 {[%emt 0:00:04]} Ka3 {[%emt 0:00:17]} 79. Qa5# {[%emt 0:00:07]} 1-0

[Event "FIDE World Cup O10-B 2024"]
[Site "Batumi"]
[Date "2024.06.23"]
[Round "1.4"]
[White "Kiringoda, Thehas Rithmitha"]
[Black "Yu, Zechen"]
[Result "0-1"]
[ECO "D00"]
[WhiteElo "1641"]
[BlackElo "1889"]
[Annotator "NA RC"]
[PlyCount "120"]
[EventDate "2024.06.23"]
[EventType "swiss"]
[EventCountry "GEO"]
[SourceTitle "playchess.com"]
[Source "ChessBase"]
[SourceQuality "1"]
[TimeControl "5400+30"]

1. d4 {[%emt 0:00:26]} Nf6 {[%emt 0:00:30]} 2. Bf4 {[%emt 0:00:34]} d5 {[%emt 0:00:05]} 3. e3 {[%emt 0:00:30]} c5 {[%emt 0:02:46]} 4. c3 {[%emt 0:01:56]} Nc6 {[%emt 0:01:19]} 5. Nf3 {[%emt 0:01:44]} Bf5 {[%emt 0:07:05]} 6. Nbd2 {[%emt 0:07:47]} e6 {[%emt 0:00:42]} 7. Be2 {[%emt 0:01:20]} Be7 {[%emt 0:04:07]} 8. h3 {[%emt 0:03:05]} h6 {[%emt 0:01:04]} 9. O-O {[%emt 0:02:32]} O-O {[%emt 0:00:08]} 10. Re1 {[%emt 0:01:01]} a6 {[%emt 0:11:52]} 11. Ne5 {[%emt 0:06:47]} Nxe5 {[%emt 0:02:31]} 12. Bxe5 {[%emt 0:00:22]} Nd7 {[%emt 0:00:08]} 13. Bg3 {[%emt 0:00:23]} Bh7 {[%emt 0:05:40]} 14. Nf3 {[%emt 0:04:23]} Rc8 {[%emt 0:05:18]} 15. Bd3 {[%emt 0:04:28]} Bxd3 {[%emt 0:05:12]} 16. Qxd3 {[%emt 0:00:15]} c4 {[%emt 0:00:09]} 17. Qc2 {[%emt 0:01:27]} f5 {[%emt 0:00:30]} 18. Ne5 {[%emt 0:04:43]} Nxe5 {[%emt 0:01:19]} 19. Bxe5 {[%emt 0:00:22]} Bd6 {[%emt 0:04:01]} 20. Bxd6 {[%emt 0:02:00]} Qxd6 {[%emt 0:00:14]} 21. f4 {[%emt 0:00:06]} Rc7 {[%emt 0:03:52]} 22. Kh1 {[%emt 0:03:07]} g5 {[%emt 0:00:53]} 23. g3 {[%emt 0:00:39]} Rg7 {[%emt 0:01:23]} 24. Rg1 {[%emt 0:00:48]} g4 {[%emt 0:00:23]} 25. h4 {[%emt 0:00:52]} b5 {[%emt 0:02:05]} 26. Rgb1 {[%emt 0:11:09]} Rc7 {[%emt 0:00:57]} 27. Qd2 {[%emt 0:01:45]} a5 {[%emt 0:03:05]} 28. a3 {[%emt 0:00:22]} Rb8 {[%emt 0:00:29]} 29. Ra2 {[%emt 0:00:44]} b4 {[%emt 0:15:36]} 30. axb4 {[%emt 0:00:47]} axb4 {[%emt 0:00:10]} 31. Rba1 {[%emt 0:00:12]} bxc3 {[%emt 0:02:38]} 32. bxc3 {[%emt 0:00:40]} Rcb7 {[%emt 0:02:47]} 33. Ra8 {[%emt 0:00:19]} Qb6 {[%emt 0:01:22]} 34. Rxb8+ {[%emt 0:08:27]} Rxb8 {[%emt 0:00:05]} 35. Qa2 {[%emt 0:09:42]} Kf7 {[%emt 0:00:34]} 36. Qa4 {[%emt 0:01:20]} Qb2 {[%emt 0:04:20]} 37. Qa7+ {[%emt 0:00:33]} Kf6 {[%emt 0:00:43]} 38. Rg1 {[%emt 0:03:28]} Qb7 {[%emt 0:02:22]} 39. Qa3 {[%emt 0:00:23]} Ra8 {[%emt 0:04:05]} 40. Qd6 {[%emt 0:00:17]} Qb8 {[%emt 0:01:35]} 41. Qc5 {[%emt 0:01:43]} Kf7 {[%emt 0:02:04]} 42. Qc6 {[%emt 0:00:29]} Ra7 {[%emt 0:01:01]} 43. Rg2 {[%emt 0:04:38]} Qb7 {[%emt 0:01:06]} 44. Qc5 {[%emt 0:02:54]} Ra1+ {[%emt 0:01:15]} 45. Kh2 {[%emt 0:00:12]} Ra6 {[%emt 0:01:52]} 46. Rf2 {[%emt 0:01:36]} Qc6 {[%emt 0:00:29]} 47. Qb4 {[%emt 0:00:13]} Qb6 {[%emt 0:00:14]} 48. Qb2 {[%emt 0:06:59]} Qb3 {[%emt 0:01:07]} 49. Qc1 {[%emt 0:00:25]} Qa3 {[%emt 0:00:40]} 50. Qb1 {[%emt 0:00:30]} Qb3 {[%emt 0:00:40]} 51. Qc1 {[%emt 0:00:58]} Ra3 {[%emt 0:00:27]} 52. Rc2 {[%emt 0:01:12]} Qa4 {[%emt 0:00:17]} 53. Qb1 {[%emt 0:01:57]} Rb3 {[%emt 0:00:29]} 54. Qc1 {[%emt 0:00:19]} Qa3 {[%emt 0:00:09]} 55. Qd2 {[%emt 0:00:08]} Qa1 {[%emt 0:00:23]} 56. h5 {[%emt 0:01:06]} Rb1 {[%emt 0:00:24]} 57. Qg2 {[%emt 0:00:16]} Re1 {[%emt 0:00:36]} 58. Ra2 {[%emt 0:01:06]} Qxc3 {[%emt 0:00:53]} 59. Ra7+ {[%emt 0:00:07]} Kf6 {[%emt 0:00:08]} 60. Qa2 {[%emt 0:01:25]} Qxe3 {[%emt 0:00:33]} 0-1

[Event "FIDE World Cup O10-B 2024"]
[Site "Batumi"]
[Date "2024.06.23"]
[Round "1.5"]
[White "Ling, Chenxuan"]
[Black "Makhsatuly, Rakhim"]
[Result "1/2-1/2"]
[ECO "E05"]
[WhiteElo "1868"]
[BlackElo "1630"]
[Annotator "NA RC"]
[PlyCount "107"]
[EventDate "2024.06.23"]
[EventType "swiss"]
[EventCountry "GEO"]
[SourceTitle "playchess.com"]
[Source "ChessBase"]
[SourceQuality "1"]
[TimeControl "5400+30"]

1. Nf3 {[%emt 0:00:25]} Nf6 {[%emt 0:00:22]} 2. g3 {[%emt 0:00:11]} e6 {[%emt 0:02:26]} 3. Bg2 {[%emt 0:00:07]} d5 {[%emt 0:00:05]} 4. d4 {[%emt 0:00:07]} Be7 {[%emt 0:00:04]} 5. O-O {[%emt 0:00:07]} O-O {[%emt 0:00:03]} 6. c4 {[%emt 0:00:06]} dxc4 {[%emt 0:00:06]} 7. Qc2 {[%emt 0:00:10]} a6 {[%emt 0:00:04]} 8. Qxc4 {[%emt 0:01:15]} b5 {[%emt 0:00:33]} 9. Qc2 {[%emt 0:00:21]} Bb7 {[%emt 0:00:13]} 10. Bd2 {[%emt 0:02:09]} Be4 {[%emt 0:09:27]} 11. Qc1 {[%emt 0:00:21]} Nc6 {[%emt 0:01:21]} 12. Nc3 {[%emt 0:03:18]} Nxd4 {[%emt 0:10:33]} 13. Nxd4 {[%emt 0:02:10]} Bxg2 {[%emt 0:00:58]} 14. Nxe6 {[%emt 0:00:31]} fxe6 {[%emt 0:03:37]} 15. Kxg2 {[%emt 0:00:59]} b4 {[%emt 0:00:01]} 16. Na4 {[%emt 0:02:40]} c5 {[%emt 1:08:37]} 17. Rd1 {[%emt 0:16:04]} Qa5 {[%emt 0:00:00]} 18. b3 {[%emt 0:02:52]} Qb5 {[%emt 0:00:00]} 19. Re1 {[%emt 0:07:49]} Ne4 {[%emt 0:00:00]} 20. f3 {[%emt 0:05:51]} Nxd2 {[%emt 0:00:00]} 21. Qxd2 {[%emt 0:00:19]} c4 {[%emt 0:00:00]} 22. Qe3 {[%emt 0:00:19]} e5 {[%emt 0:00:00]} 23. Nb2 {[%emt 0:02:23]} c3 {[%emt 0:00:00]} 24. Nc4 {[%emt 0:00:02]} Bf6 {[%emt 0:00:00]} 25. Qe4 {[%emt 0:01:21]} Rad8 {[%emt 0:00:00]} 26. Rad1 {[%emt 0:02:27]} Rd4 {[%emt 0:00:00]} 27. Qf5 {[%emt 0:04:38]} Rfd8 {[%emt 0:00:00]} 28. Qe6+ {[%emt 0:01:24]} Kf8 {[%emt 0:00:00]} 29. Rxd4 {[%emt 0:02:15]} exd4 {[%emt 0:00:00]} 30. Qe4 {[%emt 0:00:32]} Re8 {[%emt 0:00:00]} 31. Qxh7 {[%emt 0:01:33]} Qd5 {[%emt 0:00:00]} 32. Qd3 {[%emt 0:00:53]} Bg5 {[%emt 0:00:00]} 33. e4 {[%emt 0:02:41]} Qd7 {[%emt 0:00:00]} 34. f4 {[%emt 0:00:30]} Bf6 {[%emt 0:00:00]} 35. e5 {[%emt 0:03:00]} Qd5+ {[%emt 0:00:00]} 36. Kf2 {[%emt 0:00:22]} Be7 {[%emt 0:10:00]} 37. h4 {[%emt 0:11:53]} g5 {[%emt 0:00:00]} 38. e6 {[%emt 0:04:43]} gxf4 {[%emt 0:00:00]} 39. Re5 {[%emt 0:00:31]} fxg3+ {[%emt 0:00:00]} 40. Qxg3 {[%emt 0:01:27]} Qd8 {[%emt 0:00:00]} 41. Qf4+ {[%emt 0:01:49]} Bf6 {[%emt 0:00:00]} 42. e7+ {[%emt 0:00:14]} Rxe7 {[%emt 0:00:00]} 43. Rf5 {[%emt 0:06:11]} Rf7 {[%emt 0:00:00]} 44. Ne5 {[%emt 0:01:12]} Bxh4+ {[%emt 0:00:47]} 45. Kg1 {[%emt 0:01:51]} Rxf5 {[%emt 0:00:12]} 46. Qxf5+ {[%emt 0:00:01]} Bf6 {[%emt 0:00:14]} 47. Nd7+ {[%emt 0:01:15]} Kg7 {[%emt 0:00:07]} 48. Qg4+ {[%emt 0:00:21]} Kf7 {[%emt 0:01:31]} 49. Qh5+ {[%emt 0:00:08]} Ke6 {[%emt 0:00:14]} 50. Nc5+ {[%emt 0:00:06]} Ke7 {[%emt 0:00:45]} 51. Qh7+ {[%emt 0:00:12]} Ke8 {[%emt 0:00:19]} 52. Qh5+ {[%emt 0:12:24]} Kf8 53. Qf5 {[%emt 0:00:30]} Kf7 54. Nd7 {[%emt 0:00:30]} 1/2-1/2

[Event "FIDE World Cup O10-B 2024"]
[Site "Batumi"]
[Date "2024.06.23"]
[Round "1.6"]
[White "Jibladze, Nikoloz"]
[Black "Modith Aaroh Mutyalapati"]
[Result "0-1"]
[ECO "C14"]
[WhiteElo "1612"]
[BlackElo "1866"]
[Annotator "NA RC"]
[PlyCount "96"]
[EventDate "2024.06.23"]
[EventType "swiss"]
[EventCountry "GEO"]
[SourceTitle "playchess.com"]
[Source "ChessBase"]
[SourceQuality "1"]
[TimeControl "5400+30"]

1. e4 {[%emt 0:00:09]} e6 {[%emt 0:00:08]} 2. d4 {[%emt 0:00:13]} d5 {[%emt 0:00:01]} 3. Nc3 {[%emt 0:00:13]} Nf6 {[%emt 0:00:00]} 4. Bg5 {[%emt 0:00:40]} Be7 {[%emt 0:00:01]} 5. e5 {[%emt 0:01:03]} Nfd7 {[%emt 0:00:01]} 6. h4 {[%emt 0:02:29]} h6 {[%emt 0:00:23]} 7. Bxe7 {[%emt 0:01:30]} Qxe7 {[%emt 0:00:03]} 8. Qg4 {[%emt 0:01:10]} Kf8 {[%emt 0:00:52]} 9. f4 {[%emt 0:04:49]} h5 {[%emt 0:01:52]} 10. Qf3 {[%emt 0:04:31]} c5 {[%emt 0:04:14]} 11. O-O-O {[%emt 0:03:10]} Nc6 {[%emt 0:01:11]} 12. dxc5 {[%emt 0:04:14]} a6 {[%emt 0:00:27]} 13. Nh3 {[%emt 0:03:33]} Nxc5 {[%emt 0:00:29]} 14. Ng5 {[%emt 0:01:19]} b5 {[%emt 0:00:10]} 15. Ne2 {[%emt 0:06:49]} Bb7 {[%emt 0:00:28]} 16. Qh3 {[%emt 0:02:54]} Rc8 {[%emt 0:01:52]} 17. f5 {[%emt 0:03:02]} Nxe5 {[%emt 0:00:27]} 18. Nf4 {[%emt 0:07:47]} exf5 {[%emt 0:01:11]} 19. Qxf5 {[%emt 0:01:56]} g6 {[%emt 0:00:19]} 20. Nfe6+ {[%emt 0:05:24]} Nxe6 {[%emt 0:02:07]} 21. Qxe5 {[%emt 0:00:17]} Ng7 {[%emt 0:02:50]} 22. Qxe7+ {[%emt 0:01:42]} Kxe7 {[%emt 0:00:02]} 23. Bd3 {[%emt 0:00:17]} f5 {[%emt 0:02:15]} 24. Rde1+ {[%emt 0:01:52]} Kf6 {[%emt 0:00:10]} 25. Re2 {[%emt 0:01:24]} Rce8 {[%emt 0:00:40]} 26. Rhe1 {[%emt 0:00:14]} Rxe2 {[%emt 0:00:29]} 27. Rxe2 {[%emt 0:00:02]} Bc8 {[%emt 0:00:14]} 28. Kd2 {[%emt 0:02:47]} Ne6 {[%emt 0:00:08]} 29. Nxe6 {[%emt 0:00:12]} Bxe6 {[%emt 0:00:01]} 30. c3 {[%emt 0:00:40]} Re8 {[%emt 0:00:06]} 31. Ke3 {[%emt 0:00:35]} Rc8 {[%emt 0:02:19]} 32. Kf4 {[%emt 0:01:14]} d4 {[%emt 0:00:17]} 33. cxd4 {[%emt 0:01:10]} Bxa2 {[%emt 0:00:02]} 34. Rc2 {[%emt 0:02:25]} Rxc2 {[%emt 0:00:15]} 35. Bxc2 {[%emt 0:00:11]} Bd5 {[%emt 0:00:01]} 36. g3 {[%emt 0:00:30]} a5 {[%emt 0:00:56]} 37. Bd3 {[%emt 0:01:32]} b4 {[%emt 0:00:06]} 38. Bc2 {[%emt 0:02:35]} b3 {[%emt 0:00:21]} 39. Bb1 {[%emt 0:00:43]} a4 {[%emt 0:00:06]} 40. Bd3 {[%emt 0:01:45]} Be4 {[%emt 0:01:33]} 41. Bc4 {[%emt 0:00:44]} a3 {[%emt 0:00:49]} 42. bxa3 {[%emt 0:00:13]} b2 {[%emt 0:00:01]} 43. Ba2 {[%emt 0:00:02]} b1=Q {[%emt 0:00:02]} 44. Bxb1 {[%emt 0:00:21]} Bxb1 {[%emt 0:00:01]} 45. d5 {[%emt 0:01:47]} Be4 {[%emt 0:00:34]} 46. d6 {[%emt 0:00:13]} Ke6 {[%emt 0:00:01]} 47. Kg5 {[%emt 0:00:51]} Kxd6 {[%emt 0:00:05]} 48. a4 {[%emt 0:00:19]} Ke5 {[%emt 1:23:50]} 0-1